fUST/lending_fUST_20240204
["ID","MTS","AMOUNT","RATE_DAILY","PERIOD"]
[313228540,1706976223351,168.414013,0.00019178,2]
[313228543,1706976287309,854.75188932,0.00019945,2]
[313228546,1706976376224,9365.74,0.00020018,3]
[313228547,1706976401517,167.02635561,0.0002002,2]
[313228548,1706976402611,213.88818253,0.0002002,2]
[313228549,1706976404268,285.43734904,0.0002002,2]
[313228550,1706976420286,461.15255,0.00019022,2]
[313228551,1706976420840,24900.0,0.00019022,2]
[313228554,1706976434787,1017.12321481,0.0002001,2]
[313228555,1706976444085,166.0964028,0.0002001,2]
[313228556,1706976444640,155.03255684,0.0002001,4]
[313228557,1706976453980,5848.46839529,0.0002001,2]
[313228558,1706976454723,5000.0,0.0002001,5]
[313228559,1706976456530,620.65722826,0.0002001,2]
[313228560,1706976457919,3000.0,0.00019019,2]
[313228561,1706976458614,589.57572061,0.0002001,2]
[313228562,1706976463074,562.98112702,0.0002001,2]
[313228563,1706976464648,155.03255684,0.0001801,3]
[313228564,1706976464763,1744.20188823,0.0002001,2]
[313228565,1706976465441,5219.85027609,0.0002001,2]
[313228566,1706976467583,562.98112702,0.0002001,2]
[313228567,1706976467981,261.63919067,0.0002001,2]
[313228568,1706976469645,717.4770118,0.0002001,2]
[313228569,1706976470710,2064.9784931,0.00019411,2]
[313228571,1706976479445,243.65021218,0.0002001,2]
[313228572,1706976480497,1200.7118793,0.0002001,2]
[313228573,1706976480783,161.36698109,0.0002001,2]
[313228574,1706976482653,155.03255684,0.0001801,3]
[313228577,1706976495627,20913.35226665,0.0002001,2]
[313228578,1706976496691,155.03255684,0.00018029,3]
[313228579,1706976504090,562.98112702,0.0002001,2]
[313228580,1706976516695,155.03255684,0.00018029,3]
[313228583,1706976532660,155.03255684,0.00018029,3]
[313228584,1706976548265,155.03255684,0.0002001,2]
[313228585,1706976554657,155.03255684,0.00018019,3]
[313228587,1706976566144,4176.84141118,0.0002001,2]
[313228588,1706976572682,155.03255684,0.00018029,3]
[313228589,1706976590666,155.03255684,0.00018029,3]
[313228592,1706976616664,155.03255684,0.0001802,3]
[313228593,1706976617263,155.03255684,0.0002001,2]
[313228594,1706976623114,166.0964028,0.0002001,2]
[313228595,1706976628454,5219.85027609,0.0002001,2]
[313228643,1706976632686,155.03255684,0.00018029,3]
[313228657,1706976634655,717.4770118,0.0002001,2]
[313228696,1706976638696,-3328.64967646,0.00020011,2]
[313228697,1706976638706,-5842.65619556,0.00020011,2]
[313228699,1706976638715,-591.99312524,0.00020011,2]
[313228702,1706976638725,-620.04257692,0.00020011,2]
[313228704,1706976638734,-848.46912015,0.00020011,2]
[313228706,1706976638744,-261.37132331,0.00020011,2]
[313228708,1706976638753,-16350.63,0.00020024,3]
[313228710,1706976638762,-13625.52,0.00020024,3]
[313228711,1706976638772,-1103.41312434,0.00020032,2]
[313228713,1706976638782,-1200.31274669,0.00020032,2]
[313228715,1706976638791,-244.79954928,0.00020032,2]
[313228717,1706976638801,-161.75083312,0.00020032,2]
[313228720,1706976638811,-336.05975142,0.00020032,2]
[313228722,1706976638820,-3658.40432141,0.00020032,2]
[313228724,1706976638830,-245.747201,0.00020032,2]
[313228726,1706976638839,-169.36595053,0.00020033,2]
[313228728,1706976638849,-215.32400809,0.00020033,2]
[313228730,1706976638858,-19366.61575884,0.00020033,2]
[313228732,1706976638867,-33175.93300909,0.00020034,2]
[313228734,1706976638876,-1000.0,0.00020034,2]
[313228736,1706976638886,-1000.0,0.00020034,2]
[313228738,1706976638895,-1000.0,0.00020034,2]
[313228740,1706976638904,-1000.0,0.00020034,2]
[313228742,1706976638914,-1000.0,0.00020034,2]
[313228744,1706976638923,-1000.0,0.00020034,2]
[313228746,1706976638933,-1000.0,0.00020034,2]
[313228748,1706976638942,-1000.0,0.00020034,2]
[313228750,1706976638952,-1000.0,0.00020034,2]
[313228752,1706976638961,-1000.0,0.00020034,2]
[313228754,1706976638970,-1000.0,0.00020034,2]
[313228756,1706976638979,-1000.0,0.00020034,2]
[313228758,1706976638988,-1000.0,0.00020034,2]
[313228760,1706976638998,-1000.0,0.00020034,2]
[313228762,1706976639007,-1000.0,0.00020034,2]
[313228764,1706976639016,-1000.0,0.00020034,2]
[313228766,1706976639026,-1000.0,0.00020034,2]
[313228768,1706976639035,-1000.0,0.00020034,2]
[313228770,1706976639046,-1000.0,0.00020034,2]
[313228772,1706976639055,-1000.0,0.00020034,2]
[313228774,1706976639064,-4857.20572974,0.00021,2]
[313228776,1706976639073,-166.666666,0.00021918,2]
[313228778,1706976639082,-3977.44618093,0.00022,2]
[313228780,1706976639092,-426.88835692,0.00022,2]
[313228782,1706976639102,-326.17134224,0.00022,2]
[313228784,1706976639111,-200.0,0.00022023,7]
[313228786,1706976639120,-166.666666,0.00022431,2]
[313228788,1706976639129,-166.666666,0.00022944,2]
[313228790,1706976639139,-155.57854716,0.00022966,2]
[313228792,1706976639148,-9959.98060866,0.00023,2]
[313228794,1706976639157,-1262.10938839,0.00023,2]
[313228796,1706976639166,-854.7518893,0.00023295,2]
[313228798,1706976639175,-166.666666,0.00023456,2]
[313228800,1706976639185,-17567.89013607,0.00023899,2]
[313228802,1706976639194,-181.42906399,0.00023899,2]
[313228804,1706976639203,-7113.94258855,0.000239,2]
[313228806,1706976639212,-166.666666,0.00023969,2]
[313228808,1706976639222,-280.0,0.00024225,7]
[313228810,1706976639231,-236.47033117,0.00024349,2]
[313228812,1706976639241,-166.666666,0.00024482,2]
[313228814,1706976639251,-499.59176388,0.0002496,5]
[313228816,1706976639260,-639.85213328,0.00024969,2]
[313228828,1706976639270,-1803.33887905,0.00024969,2]
[313228833,1706976639407,-1997.51914833,0.00024999,2]
[313228835,1706976639416,-653.59416934,0.00025,10]
[313228837,1706976639425,-2041.88584619,0.00025,2]
[313228839,1706976639435,-4397.71584247,0.00025,2]
[313228841,1706976639446,-1009.66283659,0.00025,2]
[313228843,1706976639456,-335.29979556,0.00025,2]
[313228845,1706976639465,-953.43226612,0.00025198,2]
[313228847,1706976639474,-869.18055187,0.00025297,2]
[313228849,1706976639484,-245.92623635,0.00025385,2]
[313228851,1706976639493,-155.30404275,0.0002539,2]
[313228853,1706976639502,-258.41290122,0.00025421,2]
[313228855,1706976639512,-345.84837407,0.00025454,2]
[313228857,1706976639521,-913.52520602,0.00025508,2]
[313228859,1706976639530,-904.27081356,0.00025518,2]
[313228861,1706976639542,-156.8872007,0.00025518,2]
[313228863,1706976639551,-161.49632699,0.00025519,2]
[313228865,1706976639560,-200.0,0.00025519,2]
[313228867,1706976639569,-155.35403325,0.00025519,2]
[313228870,1706976639578,-199.40706309,0.00025519,2]
[313228872,1706976639587,-3878.22590192,0.00025519,2]
[313228874,1706976639596,-300.0,0.00025519,2]
[313228876,1706976639605,-230.88142086,0.00025519,2]
[313228878,1706976639615,-1486.85751127,0.00025519,2]
[313228879,1706976639624,-309.29107459,0.00025519,2]
[313228881,1706976639633,-329.63381135,0.00025519,2]
[313228883,1706976639643,-379.00530314,0.0002552,7]
[313228885,1706976639653,-16795.39062351,0.0002552,2]
[313228888,1706976639662,-155.05116031,0.0002552,2]
[313228890,1706976639672,-499.62988618,0.0002552,2]
[313228892,1706976639681,-500.0,0.0002552,2]
[313228894,1706976639690,-500.0,0.0002552,2]
[313228896,1706976639700,-500.0,0.0002552,2]
[313228898,1706976639709,-500.0,0.0002552,2]
[313228899,1706976639718,-400.0,0.0002552,2]
[313228902,1706976639728,-500.0,0.0002552,2]
[313228903,1706976639737,-500.0,0.0002552,2]
[313228906,1706976639747,-500.0,0.0002552,2]
[313228908,1706976639758,-500.0,0.0002552,2]
[313228909,1706976639768,-500.0,0.0002552,2]
[313228911,1706976639776,-500.0,0.0002552,2]
[313228913,1706976639786,-500.0,0.0002552,2]
[313228915,1706976639799,-500.0,0.0002552,2]
[313228917,1706976639809,-500.0,0.0002552,2]
[313228919,1706976639818,-500.0,0.0002552,2]
[313228921,1706976639828,-500.0,0.0002552,2]
[313228923,1706976639837,-500.0,0.0002552,2]
[313228925,1706976639847,-500.0,0.0002552,2]
[313228928,1706976639857,-500.0,0.0002552,2]
[313228930,1706976639867,-500.0,0.0002552,2]
[313228931,1706976639876,-500.0,0.0002552,2]
[313228934,1706976639886,-492.26509886,0.0002552,2]
[313228936,1706976639895,-500.0,0.0002552,2]
[313228937,1706976639904,-449.6705418,0.0002552,2]
[313228939,1706976639913,-500.0,0.0002552,2]
[313228941,1706976639922,-500.0,0.0002552,2]
[313228943,1706976639932,-500.0,0.0002552,2]
[313228945,1706976639941,-389.54755558,0.0002552,2]
[313228947,1706976639951,-500.0,0.0002552,2]
[313228949,1706976639960,-391.0,0.0002552,2]
[313228951,1706976639969,-500.0,0.0002552,2]
[313228953,1706976639979,-500.0,0.0002552,2]
[313228955,1706976639988,-500.0,0.0002552,2]
[313228958,1706976639997,-608.06891963,0.0002552,2]
[313228959,1706976640007,-500.0,0.0002552,2]
[313228962,1706976640016,-250.0,0.0002552,2]
[313228964,1706976640026,-500.0,0.0002552,2]
[313228965,1706976640035,-500.0,0.0002552,2]
[313228968,1706976640047,-500.0,0.0002552,2]
[313228970,1706976640057,-500.0,0.0002552,2]
[313228972,1706976640066,-500.0,0.0002552,2]
[313228974,1706976640076,-500.0,0.0002552,2]
[313228976,1706976640086,-500.0,0.0002552,2]
[313228978,1706976640095,-500.0,0.0002552,2]
[313228980,1706976640105,-500.0,0.0002552,2]
[313228981,1706976640114,-500.0,0.0002552,2]
[313228984,1706976640123,-500.0,0.0002552,2]
[313228986,1706976640133,-500.0,0.0002552,2]
[313228988,1706976640143,-500.0,0.0002552,2]
[313228990,1706976640152,-500.0,0.0002552,2]
[313228991,1706976640161,-283.14651293,0.0002552,2]
[313228993,1706976640170,-500.0,0.0002552,2]
[313228996,1706976640180,-500.0,0.0002552,2]
[313228997,1706976640190,-500.0,0.0002552,2]
[313228999,1706976640200,-188.58437497,0.0002552,2]
[313229001,1706976640209,-500.0,0.0002552,2]
[313229003,1706976640218,-500.0,0.0002552,2]
[313229005,1706976640227,-500.0,0.0002552,2]
[313229007,1706976640236,-500.0,0.0002552,2]
[313229009,1706976640245,-500.0,0.0002552,2]
[313229011,1706976640255,-500.0,0.0002552,2]
[313229014,1706976640264,-500.0,0.0002552,2]
[313229015,1706976640274,-500.0,0.0002552,2]
[313229017,1706976640284,-500.0,0.0002552,2]
[313229019,1706976640295,-500.0,0.0002552,2]
[313229021,1706976640304,-500.0,0.0002552,2]
[313229023,1706976640314,-500.0,0.0002552,2]
[313229025,1706976640323,-500.0,0.0002552,2]
[313229028,1706976640334,-500.0,0.0002552,2]
[313229029,1706976640343,-86708.17069535,0.00025521,2]
[313229031,1706976640353,-76175.05075347,0.00025521,2]
[313229033,1706976640362,-16835.12795993,0.00025521,2]
[313229035,1706976640376,-3702.99700935,0.00025845,2]
[313229037,1706976640386,-854.7518893,0.00026644,3]
[313229040,1706976640396,-391.0,0.00026648,15]
[313229042,1706976640405,-620.01050943,0.00026663,2]
[313229044,1706976640417,-258.41290118,0.00027019,2]
[313229046,1706976640426,-155.47989773,0.00027396,2]
[313229048,1706976640435,-17170.66227847,0.00027396,2]
[313229050,1706976640445,-500.0,0.00027397,2]
[313229052,1706976640454,-516.50741356,0.00027397,2]
[313229053,1706976640464,-155.02015262,0.00027397,2]
[313229055,1706976640473,-500.0,0.00027397,2]
[313229058,1706976640483,-500.0,0.00027397,2]
[313229059,1706976640492,-500.0,0.00027397,2]
[313229061,1706976640502,-500.0,0.00027397,2]
[313229063,1706976640511,-503.63711727,0.00027397,2]
[313229064,1706976640520,-500.0,0.00027397,2]
[313229066,1706976640529,-516.25072468,0.00027397,2]
[313229067,1706976640538,-500.0,0.00027397,2]
[313229068,1706976640548,-301.93124772,0.00027397,2]
[313229069,1706976640557,-505.61402559,0.00027397,7]
[313229070,1706976640566,-503.75418424,0.00027397,2]
[313229071,1706976640575,-176.33972775,0.00027397,2]
[313229072,1706976640584,-308.37268485,0.00027397,2]
[313229073,1706976640593,-500.0,0.00027397,2]
[313229074,1706976640603,-500.0,0.00027397,2]
[313229075,1706976640613,-500.0,0.00027397,2]
[313229076,1706976640624,-417.62531425,0.00027397,2]
[313229077,1706976640633,-542.29771224,0.00027397,2]
[313229078,1706976640642,-506.59111545,0.00027397,2]
[313229079,1706976640652,-500.0,0.00027397,2]
[313229080,1706976640661,-500.0,0.00027397,2]
[313229081,1706976640671,-500.0,0.00027397,2]
[313229082,1706976640681,-500.0,0.00027397,2]
[313229083,1706976640690,-508.84074128,0.00027397,2]
[313229084,1706976640699,-504.62288054,0.00027397,2]
[313229085,1706976640709,-505.61619828,0.00027397,2]
[313229086,1706976640718,-500.0,0.00027397,2]
[313229087,1706976640728,-320.28093465,0.00027397,2]
[313229088,1706976640737,-505.88117629,0.00027397,2]
[313229089,1706976640746,-513.93419891,0.00027397,2]
[313229090,1706976640755,-500.0,0.00027397,2]
[313229091,1706976640766,-503.37405009,0.00027397,2]
[313229092,1706976640776,-500.0,0.00027397,2]
[313229094,1706976640786,-500.0,0.00027397,2]
[313229095,1706976640797,-503.81745858,0.00027397,2]
[313229096,1706976640806,-500.0,0.00027397,2]
[313229097,1706976640816,-505.95287227,0.00027397,2]
[313229098,1706976640826,-501.95979755,0.00027397,2]
[313229099,1706976640835,-525.34101276,0.00027397,2]
[313229102,1706976640846,-501.56367019,0.00027397,2]
[313229103,1706976640856,-500.0,0.00027397,2]
[313229105,1706976640866,-500.0,0.00027397,2]
[313229107,1706976640875,-240.43038265,0.00027397,2]
[313229108,1706976640885,-180.9410393,0.00027397,2]
[313229109,1706976640893,-500.0,0.00027397,2]
[313229110,1706976640902,-530.44382497,0.00027397,2]
[313229111,1706976640911,-509.16728415,0.00027397,2]
[313229112,1706976640920,-500.0,0.00027397,2]
[313229113,1706976640930,-846.77,0.00027397,2]
[313229114,1706976640939,-500.0,0.00027397,2]
[313229115,1706976640949,-624.15640998,0.00027397,2]
[313229116,1706976640958,-500.0,0.00027397,2]
[313229117,1706976640968,-1431.35,0.00027397,2]
[313229118,1706976640978,-552.69410233,0.00027397,2]
[313229119,1706976640987,-5628.75,0.00027397,2]
[313229120,1706976640996,-500.0,0.00027397,2]
[313229121,1706976641006,-500.0,0.00027397,2]
[313229122,1706976641015,-2322.29,0.00027397,2]
[313229123,1706976641025,-500.0,0.00027397,2]
[313229124,1706976641034,-500.0,0.00027397,2]
[313229125,1706976641044,-500.0,0.00027397,2]
[313229126,1706976641054,-500.0,0.00027397,2]
[313229127,1706976641063,-500.0,0.00027397,2]
[313229128,1706976641073,-500.0,0.00027397,2]
[313229129,1706976641082,-500.0,0.00027397,2]
[313229130,1706976641091,-500.0,0.00027397,2]
[313229131,1706976641100,-504.73072043,0.00027397,2]
[313229132,1706976641110,-500.0,0.00027397,2]
[313229133,1706976641119,-500.0,0.00027397,2]
[313229134,1706976641128,-500.0,0.00027397,2]
[313229135,1706976641137,-500.0,0.00027397,2]
[313229136,1706976641146,-500.0,0.00027397,2]
[313229137,1706976641156,-500.0,0.00027397,2]
[313229138,1706976641166,-500.0,0.00027397,2]
[313229139,1706976641176,-500.0,0.00027397,2]
[313229140,1706976641185,-500.0,0.00027397,2]
[313229141,1706976641195,-506.1910347,0.00027397,2]
[313229142,1706976641204,-500.0,0.00027397,2]
[313229143,1706976641213,-549.09261835,0.00027397,2]
[313229144,1706976641222,-500.0,0.00027397,2]
[313229145,1706976641232,-500.0,0.00027397,2]
[313229146,1706976641241,-709.49,0.00027397,2]
[313229147,1706976641250,-500.0,0.00027397,2]
[313229148,1706976641259,-500.0,0.00027397,2]
[313229149,1706976641268,-500.0,0.00027397,2]
[313229150,1706976641278,-501.37259724,0.00027397,2]
[313229151,1706976641287,-500.0,0.00027397,2]
[313229152,1706976641297,-500.0,0.00027397,2]
[313229153,1706976641306,-500.0,0.00027397,2]
[313229154,1706976641316,-500.0,0.00027397,2]
[313229155,1706976641326,-500.0,0.00027397,2]
[313229156,1706976641335,-500.0,0.00027397,2]
[313229157,1706976641344,-1179.35,0.00027397,2]
[313229158,1706976641354,-500.0,0.00027397,2]
[313229159,1706976641365,-500.49854135,0.00027397,2]
[313229160,1706976641375,-500.0,0.00027397,2]
[313229161,1706976641385,-500.0,0.00027397,2]
[313229162,1706976641394,-500.0,0.00027397,2]
[313229163,1706976641403,-621.39,0.00027397,2]
[313229164,1706976641414,-505.91505518,0.00027397,2]
[313229165,1706976641423,-500.0,0.00027397,2]
[313229166,1706976641434,-500.0,0.00027397,2]
[313229167,1706976641443,-242.81069191,0.00027438,2]
[313229168,1706976641455,-5000.0,0.00027504,5]
[313229169,1706976641465,-5000.0,0.00027523,5]
[313229170,1706976641474,-500.0,0.00027671,2]
[313229171,1706976641484,-500.0,0.00027671,2]
[313229172,1706976641494,-500.0,0.00027671,2]
[313229173,1706976641504,-503.93231267,0.00027671,2]
[313229174,1706976641514,-500.0,0.00027671,2]
[313229175,1706976641523,-504.99545555,0.00027671,2]
[313229176,1706976641533,-445.72663944,0.00027671,2]
[313229177,1706976641543,-846.77,0.00027671,2]
[313229178,1706976641552,-500.0,0.00027671,2]
[313229179,1706976641561,-1431.35,0.00027671,2]
[313229180,1706976641570,-5628.75,0.00027671,2]
[313229181,1706976641580,-2322.29,0.00027671,2]
[313229182,1706976641590,-500.0,0.00027671,2]
[313229183,1706976641599,-500.0,0.00027671,2]
[313229184,1706976641609,-500.0,0.00027671,2]
[313229185,1706976641618,-500.0,0.00027671,2]
[313229186,1706976641627,-500.0,0.00027671,2]
[313229187,1706976641637,-588.78001262,0.00027671,2]
[313229188,1706976641646,-709.49,0.00027671,2]
[313229189,1706976641655,-500.0,0.00027671,2]
[313229190,1706976641664,-500.0,0.00027671,2]
[313229191,1706976641674,-500.0,0.00027671,2]
[313229192,1706976641683,-1179.35,0.00027671,2]
[313229193,1706976641692,-500.0,0.00027671,2]
[313229194,1706976641701,-621.39,0.00027671,2]
[313229195,1706976641711,-259.05064649,0.000279,3]
[313229196,1706976641720,-52071.19511397,0.000279,2]
[313229197,1706976641729,-151.0,0.000279,2]
[313229198,1706976641738,-151.0,0.000279,2]
[313229199,1706976641748,-160.440692,0.000279,2]
[313229200,1706976641758,-160.440692,0.000279,2]
[313229201,1706976641767,-846.77,0.00027945,2]
[313229202,1706976641777,-1431.35,0.00027945,2]
[313229203,1706976641786,-5628.75,0.00027945,2]
[313229204,1706976641795,-2322.29,0.00027945,2]
[313229205,1706976641804,-500.0,0.00027945,2]
[313229206,1706976641814,-500.0,0.00027945,2]
[313229207,1706976641823,-709.49,0.00027945,2]
[313229208,1706976641832,-500.0,0.00027945,2]
[313229209,1706976641841,-500.0,0.00027945,2]
[313229210,1706976641851,-500.0,0.00027945,2]
[313229211,1706976641860,-1179.35,0.00027945,2]
[313229212,1706976641870,-500.0,0.00027945,2]
[313229213,1706976641880,-621.39,0.00027945,2]
[313229214,1706976641889,-620.00052547,0.00027996,2]
[313229215,1706976641899,-155.43617143,0.00027998,2]
[313229216,1706976641908,-155.24275221,0.00027999,2]
[313229217,1706976641918,-1278.26817001,0.00027999,2]
[313229218,1706976641927,-500.0,0.00027999,2]
[313229219,1706976641937,-502.2419623,0.00027999,2]
[313229220,1706976641947,-500.0,0.00027999,2]
[313229221,1706976641957,-297.26810734,0.00027999,2]
[313229222,1706976641967,-500.0,0.00027999,2]
[313229223,1706976642060,-584.2140113,0.00027999,2]
[313229224,1706976642069,-458.56971249,0.00027999,2]
[313229225,1706976642256,-50.19988961,0.00027999,2]
[313229226,1706976642265,-533.4307293,0.00027999,2]
[313229227,1706976642275,-802.00920296,0.00028,7]
[313229228,1706976642322,1003.0,0.000201,6]
[313229229,1706976642338,-166.0964028,0.00020023,2]
[313229230,1706976642346,-103.86424508,0.0002551,3]
[313229231,1706976642357,-405.81385633,0.0002551,3]
[313229232,1706976642408,-13.40549192,0.0002551,3]
[313229292,1706976643704,-10831.51640667,0.0002551,3]
[313229293,1706976643713,-1252.43,0.00027397,2]
[313229294,1706976643723,-3367.61350803,0.00028,7]
[313229302,1706976646810,-282.50803602,0.00024869,2]
[313229303,1706976646820,-1958.21889115,0.00025509,2]
[313229304,1706976646865,-1960.77343173,0.00025509,2]
[313229306,1706976646876,-500.0,0.00027397,2]
[313229308,1706976646885,-852.18547101,0.00027671,2]
[313229310,1706976646896,-400.24452899,0.00027671,2]
[313229312,1706976646905,-500.0,0.00027671,2]
[313229313,1706976646915,-1252.43,0.00027945,2]
[313229315,1706976646924,-11561.29813478,0.00028,7]
[313229345,1706977108810,953.43226612,0.00019304,2]
[313229346,1706977207544,155.57854716,0.0002,2]
[313229349,1706977305141,230.576275,0.00019077,2]
[313229350,1706977338785,24173.3793457,0.00019069,2]
[313229355,1706977390471,2300.0,0.00019059,2]
[313229359,1706977456484,226.0064288,0.00019948,2]
[313229360,1706977463363,747.90790319,0.00019944,2]
[313229369,1706977582364,8459.56,0.0002001,3]
[313229370,1706977582586,1296.15066518,0.0002001,2]
[313229372,1706977586617,155.02480397,0.0002001,2]
[313229373,1706977593718,13048.27,0.0002001,3]
[313229374,1706977596700,1312.79079453,0.0002001,2]
[313229375,1706977598703,620.65722826,0.0002001,2]
[313229376,1706977600398,155.02480397,0.0002001,2]
[313229378,1706977601357,19739.90607694,0.0002001,2]
[313229379,1706977601464,155.02480397,0.0002001,2]
[313229380,1706977601786,37034.1990655,0.0002001,2]
[313229381,1706977602352,330.23570657,0.0002001,2]
[313229382,1706977604798,10873.56,0.0002001,3]
[313229383,1706977608227,83865.18058421,0.00020009,2]
[313229384,1706977609572,3328.64967646,0.00020009,2]
[313229385,1706977614270,4176.84141118,0.0002001,2]
[313229386,1706977614877,155.02480397,0.0002001,2]
[313229387,1706977616830,155.02480397,0.0002001,4]
[313229388,1706977617181,19120.93202142,0.0002001,2]
[313229389,1706977621376,3752.87220782,0.0002001,2]
[313229390,1706977626748,639.85213328,0.0002001,2]
[313229391,1706977637413,1744.20188823,0.0002001,2]
[313229394,1706977640683,261.63919067,0.0002001,2]
[313229396,1706977763983,654.4194153,0.00019918,2]
[313229397,1706977802338,230.576275,0.00019017,2]
[313229463,1706977831871,-155.02480397,0.00020011,2]
[313229465,1706977831881,-161.36698109,0.00020011,2]
[313229467,1706977831890,-155.02480397,0.00020012,2]
[313229470,1706977831900,-155.02480397,0.00020012,4]
[313229472,1706977831909,-1485.86339687,0.00020012,2]
[313229474,1706977831920,-371.78607221,0.00020012,2]
[313229476,1706977831932,-2319.1919421,0.00020012,2]
[313229478,1706977831941,-330.23570657,0.00020013,2]
[313229480,1706977831949,-20913.35226665,0.00020013,2]
[313229482,1706977831959,-3328.64967646,0.00020014,2]
[313229484,1706977831968,-37034.1990655,0.00020016,2]
[313229486,1706977831977,-336.05975142,0.00020018,2]
[313229488,1706977831986,-1200.31274669,0.0002002,2]
[313229490,1706977831995,-169.36595053,0.0002002,2]
[313229492,1706977832006,-215.32400809,0.0002002,2]
[313229494,1706977832015,-1103.41312434,0.0002002,2]
[313229496,1706977832024,-244.79954928,0.0002002,2]
[313229498,1706977832033,-9061.3,0.00020078,3]
[313229500,1706977832042,-262.34259935,0.00020087,2]
[313229502,1706977832051,-169.100671,0.00020088,2]
[313229504,1706977832060,-226.00642878,0.00021327,2]
[313229506,1706977832069,-155.30404275,0.00021342,2]
[313229507,1706977832078,-245.92623635,0.00021359,2]
[313229509,1706977832088,-181.42906399,0.00021369,2]
[313229511,1706977832097,-161.49632699,0.00021449,2]
[313229513,1706977832106,-345.84837407,0.00021449,2]
[313229515,1706977832116,-300.0,0.00021449,2]
[313229516,1706977832125,-309.29107459,0.00021449,2]
[313229518,1706977832134,-1486.85751127,0.00021449,2]
[313229519,1706977832143,-199.40706309,0.00021449,2]
[313229521,1706977832152,-156.8872007,0.00021449,2]
[313229523,1706977832161,-1997.51914833,0.00021449,2]
[313229524,1706977832170,-1803.33887905,0.00021449,2]
[313229526,1706977832180,-155.35403325,0.0002145,2]
[313229528,1706977832190,-200.0,0.0002145,2]
[313229530,1706977832199,-2943.37627711,0.0002145,2]
[313229538,1706977837984,-13852.0143464,0.0002145,2]
[313229539,1706977837995,-904.27081356,0.0002145,2]
[313229540,1706977838006,-1000.0,0.0002145,2]
[313229541,1706977838017,-1000.0,0.0002145,2]
[313229542,1706977838028,-1000.0,0.0002145,2]
[313229543,1706977838039,-1000.0,0.0002145,2]
[313229544,1706977838049,-1000.0,0.0002145,2]
[313229545,1706977838059,-1000.0,0.0002145,2]
[313229546,1706977838070,-1000.0,0.0002145,2]
[313229547,1706977838081,-1000.0,0.0002145,2]
[313229548,1706977838091,-1000.0,0.0002145,2]
[313229549,1706977838102,-1000.0,0.0002145,2]
[313229550,1706977838113,-1000.0,0.0002145,2]
[313229551,1706977838125,-1000.0,0.0002145,2]
[313229552,1706977838135,-1000.0,0.0002145,2]
[313229553,1706977838144,-1000.0,0.0002145,2]
[313229554,1706977838154,-1000.0,0.0002145,2]
[313229555,1706977838164,-1000.0,0.0002145,2]
[313229556,1706977838176,-1000.0,0.0002145,2]
[313229557,1706977838190,-1000.0,0.0002145,2]
[313229558,1706977838201,-1000.0,0.0002145,2]
[313229559,1706977838212,-1000.0,0.0002145,2]
[313229560,1706977838223,-155.05116031,0.00021461,2]
[313229561,1706977838235,-379.00530314,0.00021461,7]
[313229562,1706977838245,-166.666666,0.00021918,2]
[313229563,1706977838257,-3977.44618093,0.00022,2]
[313229564,1706977838267,-326.17134224,0.00022,2]
[313229565,1706977838277,-426.88835692,0.00022,2]
[313229566,1706977838289,-200.0,0.00022011,7]
[313229567,1706977838302,-166.666666,0.00022431,2]
[313229568,1706977838313,-226.00642878,0.00022707,2]
[313229569,1706977838324,-956.89809611,0.00022767,2]
[313229570,1706977838334,-166.666666,0.00022944,2]
[313229571,1706977838345,-231.33965723,0.00022997,2]
[313229572,1706977838357,-3877.00394111,0.00022997,2]
[313229573,1706977838368,-644.86914231,0.00022997,2]